fUSD/lending_fUSD_20251222
["ID","MTS","AMOUNT","RATE_DAILY","PERIOD"]
[399515074,1766424640652,-250.0,0.00015295,2]
[399515075,1766424640661,-250.0,0.00015295,2]
[399515076,1766424640671,-250.0,0.00015295,2]
[399515078,1766424640681,-250.0,0.00015295,2]
[399515081,1766424640691,-250.0,0.00015295,2]
[399515084,1766424640700,-250.0,0.00015295,2]
[399515086,1766424640709,-250.0,0.00015295,2]
[399515088,1766424640719,-151.0,0.00015295,2]
[399515090,1766424640727,-250.0,0.00015295,2]
[399515092,1766424640736,-250.0,0.00015295,2]
[399515094,1766424640745,-250.0,0.00015295,2]
[399515096,1766424640754,-250.0,0.00015295,2]
[399515098,1766424640763,-250.0,0.00015295,2]
[399515099,1766424640772,-250.0,0.00015295,2]
[399515101,1766424640782,-620.0,0.00015295,2]
[399515103,1766424640791,-250.0,0.00015295,2]
[399515106,1766424640803,-250.0,0.00015295,2]
[399515107,1766424640812,-250.0,0.00015295,2]
[399515109,1766424640821,-250.0,0.00015295,2]
[399515111,1766424640830,-250.0,0.00015295,2]
[399515113,1766424640839,-250.0,0.00015295,2]
[399515115,1766424640848,-220.0,0.00015295,2]
[399515117,1766424640857,-348.97018415,0.00015295,2]
[399515119,1766424640869,-220.0,0.00015295,2]
[399515121,1766424640878,-220.0,0.00015295,2]
[399515123,1766424640888,-209.40437684,0.00015295,2]
[399515125,1766424640897,-220.0,0.00015295,2]
[399515127,1766424640906,-220.0,0.00015295,2]
[399515129,1766424640915,-220.65667203,0.00015295,2]
[399515131,1766424640925,-151.0,0.00015295,2]
[399515132,1766424640935,-721.12765535,0.00015295,2]
[399515134,1766424640947,-1107.11551956,0.00015295,2]
[399515141,1766424641419,-344.58164276,0.00015295,2]
[399515142,1766424641429,-303.35054938,0.00015295,2]
[399515143,1766424641438,-250.0,0.00015295,2]
[399515144,1766424641447,-37.6495042,0.00015295,2]
[399515145,1766424641459,-212.3504958,0.00015295,2]
[399515146,1766424641468,-181.34047898,0.00015295,2]
[399515147,1766424641483,-68.65952102,0.00015295,2]
[399515148,1766424641492,-250.0,0.00015295,2]
[399515149,1766424641501,-250.0,0.00015295,2]
[399515150,1766424641510,-250.0,0.00015295,2]
[399515151,1766424641519,-250.0,0.00015295,2]
[399515152,1766424641528,-250.0,0.00015295,2]
[399515153,1766424641538,-250.0,0.00015295,2]
[399515154,1766424641547,-250.0,0.00015295,2]
[399515155,1766424641556,-250.0,0.00015295,2]
[399515156,1766424641565,-250.0,0.00015295,2]
[399515157,1766424641575,-250.0,0.00015295,2]
[399515158,1766424641584,-250.0,0.00015295,2]
[399515159,1766424641594,-250.0,0.00015295,2]
[399515160,1766424641603,-250.0,0.00015295,2]
[399515161,1766424641612,-250.0,0.00015295,2]
[399515162,1766424641621,-250.0,0.00015295,2]
[399515163,1766424641630,-250.0,0.00015295,2]
[399515164,1766424641639,-250.0,0.00015295,2]
[399515165,1766424641649,-250.0,0.00015295,2]
[399515166,1766424641658,-250.0,0.00015295,2]
[399515167,1766424641668,-754.93,0.00015295,2]
[399515168,1766424641678,-346.53172737,0.00015303,2]
[399515169,1766424641687,-299.99,0.0001531,2]
[399515170,1766424641696,-150.99,0.0001531,2]
[399515171,1766424641705,-9999.99,0.0001531,2]
[399515172,1766424641714,-150.99,0.0001531,2]
[399515173,1766424641723,-151.0,0.0001533,2]
[399515174,1766424641732,-151.0,0.00015367,2]
[399515175,1766424641742,-151.0,0.00015367,2]
[399515176,1766424641750,-2746.14,0.00015386,2]
[399515177,1766424641759,-1500.0,0.00015396,2]
[399515178,1766424641768,-500.0,0.00015396,2]
[399515179,1766424641777,-1580.20183557,0.00015396,2]
[399515180,1766424641787,-7070.00693658,0.00015432,2]
[399515181,1766424641795,-2189.73786502,0.00015432,2]
[399515182,1766424641805,-500.0,0.00015451,2]
[399515183,1766424641813,-298.0,0.00015452,2]
[399515184,1766424641822,-4626.93,0.00015454,2]
[399515185,1766424641831,-244.71,0.00015457,2]
[399515186,1766424641840,-500.0,0.00015493,2]
[399515187,1766424641849,-754.93,0.00015569,2]
[399515188,1766424641858,-7070.00693658,0.00015799,2]
[399515189,1766424641870,-2189.73786502,0.00015799,2]
[399515190,1766424641879,-18036.64108755,0.00015819,2]
[399515191,1766424641889,-200.0,0.00015828,2]
[399515192,1766424641898,-500.0,0.00015828,2]
[399515193,1766424641907,-200.0,0.00015828,2]
[399515194,1766424641918,-151.0,0.00015843,2]
[399515195,1766424641927,-217.15233878,0.00015843,2]
[399515196,1766424641937,-595.37131296,0.00015843,2]
[399515197,1766424641947,-151.0,0.00015843,2]
[399515198,1766424641956,-217.15233878,0.00015843,2]
[399515199,1766424641966,-754.93,0.00015843,2]
[399515200,1766424641975,-263.99,0.00015888,2]
[399515201,1766424641983,-500.0,0.00015926,2]
[399515202,1766424641992,-13172.36163455,0.00016,4]
[399515203,1766424642002,-255.0,0.00016015,2]
[399515204,1766424642011,-754.93,0.00016117,2]
[399515205,1766424642019,-346.53172737,0.00016155,2]
[399515206,1766424642028,-7070.00693658,0.00016166,2]
[399515207,1766424642038,-2189.73786502,0.00016166,2]
[399515208,1766424642047,-5000.00179898,0.000162,5]
[399515209,1766424642055,-3292.0,0.00016229,2]
[399515210,1766424642064,-200.0,0.0001634,2]
[399515211,1766424642073,-207.4,0.00016375,2]
[399515212,1766424642082,-200.0,0.00016376,2]
[399515213,1766424642092,-500.0,0.00016376,2]
[399515214,1766424642100,-200.0,0.00016376,2]
[399515215,1766424642110,-151.0,0.00016391,2]
[399515216,1766424642119,-225.18697532,0.00016391,2]
[399515217,1766424642128,-617.40005154,0.00016391,2]
[399515218,1766424642138,-151.0,0.00016391,2]
[399515219,1766424642147,-225.18697532,0.00016391,2]
[399515220,1766424642156,-754.93,0.00016391,2]
[399515221,1766424642165,-228.0,0.000164,2]
[399515222,1766424642174,-319.0,0.000164,2]
[399515223,1766424642183,-182.0,0.000164,2]
[399515224,1766424642192,-183.8888322,0.000164,2]
[399515225,1766424642201,-151.66355271,0.00016429,2]
[399515226,1766424642210,-500.0,0.00016437,2]
[399515227,1766424642219,-500.0,0.00016437,2]
[399515228,1766424642228,-500.0,0.00016437,2]
[399515229,1766424642237,-376.9654415,0.00016437,2]
[399515230,1766424642246,-24.12939226,0.00016437,2]
[399515231,1766424642265,-302.915,0.00016437,2]
[399515232,1766424642564,-172.95560774,0.00016437,2]
[399515233,1766424642574,-862.86,0.00016437,2]
[399515234,1766424642583,-531.25264543,0.00016437,2]
[399515235,1766424642592,-1830.6,0.00016438,2]
[399515236,1766424642601,-1407.81985138,0.00016438,2]
[399515237,1766424642610,-1407.81985138,0.00016438,2]
[399515238,1766424642619,-1407.81985138,0.00016438,2]
[399515239,1766424642628,-1407.81985138,0.00016438,2]
[399515240,1766424642637,-1407.81985138,0.00016438,2]
[399515241,1766424642646,-1407.81985138,0.00016438,2]
[399515242,1766424642654,-1407.81985138,0.00016438,2]
[399515243,1766424642664,-1407.81985138,0.00016438,2]
[399515244,1766424642673,-1407.81985138,0.00016438,2]
[399515245,1766424642682,-1407.81985138,0.00016438,2]
[399515247,1766424642691,-1407.81985138,0.00016438,2]
[399515249,1766424642700,-1407.81985138,0.00016438,2]
[399515250,1766424642709,-1407.81985138,0.00016438,2]
[399515251,1766424642718,-1407.81985138,0.00016438,2]
[399515252,1766424642728,-1407.81985138,0.00016438,2]
[399515253,1766424642737,-1407.81985138,0.00016438,2]
[399515255,1766424642746,-1407.81985138,0.00016438,2]
[399515257,1766424642755,-1407.81985138,0.00016438,2]
[399515259,1766424642763,-1407.81985138,0.00016438,2]
[399515261,1766424642772,-1407.81985138,0.00016438,2]
[399515262,1766424642781,-1407.81985138,0.00016438,2]
[399515263,1766424642790,-1407.81985138,0.00016438,2]
[399515264,1766424642799,-1407.81985138,0.00016438,2]
[399515266,1766424642808,-1407.81985138,0.00016438,2]
[399515268,1766424642817,-1407.81985138,0.00016438,2]
[399515270,1766424642826,-1407.81985138,0.00016438,2]
[399515272,1766424642835,-1407.81985138,0.00016438,2]
[399515273,1766424642844,-1407.81985138,0.00016438,2]
[399515275,1766424642853,-1407.81985138,0.00016438,2]
[399515277,1766424642862,-1407.81985138,0.00016438,2]
[399515279,1766424642877,-1407.81985138,0.00016438,2]
[399515281,1766424642885,-1407.81985138,0.00016438,2]
[399515283,1766424642895,-1407.81985138,0.00016438,2]
[399515285,1766424642904,-1407.81985138,0.00016438,2]
[399515287,1766424642914,-1407.81985138,0.00016438,2]
[399515289,1766424642923,-1407.81985138,0.00016438,2]
[399515291,1766424642932,-1407.81985138,0.00016438,2]
[399515293,1766424642942,-1407.81985138,0.00016438,2]
[399515294,1766424642952,-1407.81985138,0.00016438,2]
[399515296,1766424642961,-1407.81985138,0.00016438,2]
[399515298,1766424642971,-1407.81985138,0.00016438,2]
[399515301,1766424642980,-1407.81985138,0.00016438,2]
[399515302,1766424642990,-1407.81985138,0.00016438,2]
[399515303,1766424642999,-1407.81985138,0.00016438,2]
[399515304,1766424643008,-1407.81985138,0.00016438,2]
[399515305,1766424643017,-1407.81985138,0.00016438,2]
[399515306,1766424643026,-1407.81985138,0.00016438,2]
[399515307,1766424643035,-1407.81985138,0.00016438,2]
[399515308,1766424643044,-1407.81985138,0.00016438,2]
[399515309,1766424643053,-1407.81985138,0.00016438,2]
[399515310,1766424643062,-1407.81985138,0.00016438,2]
[399515311,1766424643071,-1407.81985138,0.00016438,2]
[399515312,1766424643080,-1407.81985138,0.00016438,2]
[399515313,1766424643089,-1407.81985138,0.00016438,2]
[399515314,1766424643336,-1407.81985138,0.00016438,2]
[399515315,1766424643347,-1407.81985138,0.00016438,2]
[399515316,1766424643356,-1407.81985138,0.00016438,2]
[399515317,1766424643366,-1407.81985138,0.00016438,2]
[399515318,1766424643376,-1825.76731587,0.00016438,2]
[399515319,1766424643385,-1825.76731587,0.00016438,2]
[399515320,1766424643394,-1825.76731587,0.00016438,2]
[399515322,1766424643403,-1825.76731587,0.00016438,2]
[399515323,1766424643412,-1825.76731587,0.00016438,2]
[399515324,1766424643422,-1825.76731587,0.00016438,2]
[399515325,1766424643432,-1825.76731587,0.00016438,2]
[399515326,1766424643441,-1825.76731587,0.00016438,2]
[399515327,1766424643450,-1825.76731587,0.00016438,2]
[399515328,1766424643459,-1825.76731587,0.00016438,2]
[399515329,1766424643469,-1825.76731587,0.00016438,2]
[399515330,1766424643478,-1825.76731587,0.00016438,2]
[399515331,1766424643488,-1825.76731587,0.00016438,2]
[399515332,1766424643497,-1825.76731587,0.00016438,2]
[399515333,1766424643507,-1825.76731587,0.00016438,2]
[399515335,1766424643517,-1825.76731587,0.00016438,2]
[399515337,1766424643526,-1825.76731587,0.00016438,2]
[399515338,1766424643535,-1825.76731587,0.00016438,2]
[399515339,1766424643544,-1825.76731587,0.00016438,2]
[399515340,1766424643553,-1825.76731587,0.00016438,2]
[399515341,1766424643563,-1825.76731587,0.00016438,2]
[399515343,1766424643572,-1825.76731587,0.00016438,2]
[399515345,1766424643582,-1825.76731587,0.00016438,2]
[399515347,1766424643591,-1825.76731587,0.00016438,2]
[399515348,1766424643601,-1825.76731587,0.00016438,2]
[399515349,1766424643610,-1825.76731587,0.00016438,2]
[399515350,1766424643620,-1825.76731587,0.00016438,2]
[399515351,1766424643629,-1825.76731587,0.00016438,2]
[399515352,1766424643640,-1825.76731587,0.00016438,2]
[399515353,1766424643650,-1825.76731584,0.00016438,2]
[399515354,1766424643660,-500.0,0.00016438,2]
[399515355,1766424643670,-500.0,0.00016438,2]
[399515356,1766424643680,-500.0,0.00016438,2]
[399515357,1766424643690,-500.0,0.00016438,2]
[399515358,1766424643699,-500.0,0.00016438,2]
[399515359,1766424643709,-12299.56,0.00016438,2]
[399515360,1766424643718,-225.92,0.00016438,2]
[399515361,1766424643728,-800.0,0.00016438,2]
[399515362,1766424643738,-1600.0,0.00016467,2]
[399515363,1766424643747,-168.0,0.00016521,2]
[399515364,1766424643756,-2746.14,0.00016523,2]
[399515365,1766424643766,-7070.00693658,0.00016533,2]
[399515366,1766424643775,-2189.73786502,0.00016533,2]
[399515367,1766424643784,-263.99,0.00016578,2]
[399515368,1766424643793,-358.71934003,0.000166,2]
[399515369,1766424643802,-1000.0,0.000166,2]
[399515370,1766424643812,-168.0,0.00016611,2]
[399515371,1766424643821,-168.0,0.0001665,2]
[399515372,1766424643830,-15777.13013271,0.0001666,2]
[399515373,1766424643839,-334.5472959,0.00016664,2]
[399515374,1766424643848,-151.0,0.00016664,2]
[399515375,1766424643858,-754.93,0.00016665,2]
[399515376,1766424643869,-150.0,0.00016699,2]
[399515377,1766424643880,-150.0,0.00016699,2]
[399515378,1766424643889,-150.0,0.00016699,2]
[399515379,1766424643898,-150.0,0.00016699,2]
[399515380,1766424643907,-151.61208378,0.00016699,2]
[399515381,1766424643918,-150.0,0.00016699,2]
[399515382,1766424643928,-150.0,0.00016699,2]
[399515383,1766424643937,-150.0,0.00016699,2]
[399515384,1766424643950,-194.17176914,0.00016699,2]
[399515385,1766424643959,-150.0,0.00016699,2]
[399515386,1766424643968,-150.0,0.00016699,2]
[399515387,1766424643978,-1000.0,0.000167,2]
[399515388,1766424643987,-1000.0,0.000167,2]
[399515389,1766424643996,-1000.0,0.000167,2]
[399515390,1766424644006,-1000.0,0.000167,2]
[399515391,1766424644015,-1000.0,0.000167,2]
[399515392,1766424644024,-168.0,0.000167,2]
[399515393,1766424644033,-1830.6,0.00016712,2]
[399515394,1766424644042,-165.5,0.00016712,2]
[399515395,1766424644051,-152.98420133,0.00016726,2]
[399515396,1766424644060,-150.0,0.00016726,2]
[399515397,1766424644069,-150.0,0.00016726,2]
[399515398,1766424644078,-197.68289653,0.00016732,2]
[399515399,1766424644086,-150.0,0.00016754,2]
[399515400,1766424644096,-232.09963481,0.00016754,2]
[399515401,1766424644105,-200.0,0.00016781,2]
[399515402,1766424644115,-1264.744,0.00016812,2]
[399515403,1766424644125,-518.0,0.00016812,2]
[399515404,1766424644134,-1198.0,0.00016812,2]
[399515405,1766424644143,-911.0,0.00016812,2]
[399515406,1766424644152,-1609.0,0.00016812,2]
[399515407,1766424644161,-1342.448,0.00016812,2]
[399515408,1766424644171,-613.199,0.00016812,2]
[399515409,1766424644180,-25000.0,0.00016838,3]
[399515410,1766424644189,-510.86029649,0.00016846,2]
[399515411,1766424644197,-25000.0,0.00016847,3]
[399515412,1766424644207,-25000.0,0.00016856,3]
[399515413,1766424644216,-200.0,0.00016863,2]
[399515414,1766424644226,-200.0,0.00016863,2]
[399515415,1766424644235,-200.0,0.00016864,2]
[399515416,1766424644245,-200.0,0.00016864,2]
[399515417,1766424644254,-200.0,0.00016864,2]
[399515418,1766424644264,-200.0,0.00016864,2]
[399515419,1766424644273,-200.0,0.00016864,2]
[399515420,1766424644282,-25000.0,0.00016865,3]
[399515421,1766424644292,-1177.65810365,0.00016873,5]
[399515422,1766424644301,-25000.0,0.00016874,3]
[399515423,1766424644310,-500.0,0.00016882,2]
[399515424,1766424644320,-25000.0,0.00016882,3]
[399515425,1766424644330,-500.0,0.00016889,2]
[399515426,1766424644339,-10000.0,0.0001689,2]
[399515427,1766424644348,-25000.0,0.00016891,3]
[399515428,1766424644357,-187.09457033,0.00016899,2]
[399515429,1766424644367,-157.13221176,0.00016899,2]
[399515430,1766424644376,-157.13221175,0.000169,2]
[399515431,1766424644385,-25000.0,0.000169,3]
[399515432,1766424644394,-332.76216526,0.000169,2]
[399515433,1766424644403,-7070.00693658,0.000169,2]
[399515434,1766424644415,-2189.73786502,0.000169,2]
[399515435,1766424644426,-157.13221175,0.000169,2]
[399515436,1766424644435,-383.86135003,0.000169,2]
[399515437,1766424644444,-844.93481224,0.000169,2]
[399515438,1766424644454,-211.71595035,0.000169,2]
[399515439,1766424644463,-12009.0,0.000169,2]
[399515440,1766424644473,-2000.0,0.00016908,2]
[399515441,1766424644482,-2000.0,0.00016908,2]
[399515442,1766424644492,-198.126,0.00016908,2]
[399515443,1766424644501,-200.0,0.00016924,2]
[399515444,1766424644511,-500.0,0.00016924,2]
[399515445,1766424644521,-200.0,0.00016924,2]
[399515446,1766424644531,-151.0,0.00016939,2]
[399515447,1766424644540,-233.51889341,0.00016939,2]
[399515448,1766424644549,-640.24385345,0.00016939,2]
[399515449,1766424644559,-151.0,0.00016939,2]
[399515450,1766424644568,-381.30745761,0.00016939,2]
[399515451,1766424644577,-754.93,0.00016939,2]
[399515452,1766424644586,-1000.0,0.00016939,2]
[399515453,1766424644598,-1000.0,0.00016939,2]
[399515454,1766424644608,-168.0,0.00016949,2]
[399515455,1766424644618,-457.0,0.00016959,2]
[399515456,1766424644628,-500.0,0.00016972,2]
[399515457,1766424644637,-500.0,0.00016972,2]
[399515458,1766424644647,-150.0,0.00016972,2]
[399515459,1766424644656,-500.0,0.00016973,2]
[399515460,1766424644665,-500.0,0.00016973,2]
[399515461,1766424644675,-500.0,0.00016973,2]
[399515462,1766424644684,-500.0,0.00016973,2]
[399515463,1766424644693,-500.0,0.00016973,2]
[399515464,1766424644703,-500.0,0.00016973,2]
[399515465,1766424644712,-607.27794766,0.00016973,2]
[399515466,1766424644721,-500.0,0.00016973,2]
[399515467,1766424644730,-500.0,0.00016973,2]
[399515468,1766424644739,-500.0,0.00016973,2]
[399515469,1766424644748,-500.0,0.00016973,2]
[399515470,1766424644757,-500.0,0.00016973,2]
[399515471,1766424644766,-323.69632607,0.00016973,2]
[399515472,1766424644775,-473.51090272,0.00016973,2]
[399515473,1766424644784,-517.55500559,0.00016973,2]
[399515474,1766424644793,-179.47316237,0.00016973,2]
[399515475,1766424644802,-192.33860374,0.00016973,2]
[399515476,1766424644811,-500.0,0.00016973,2]
[399515477,1766424644820,-500.0,0.00016973,2]
[399515478,1766424644829,-500.0,0.00016973,2]
[399515479,1766424644838,-500.0,0.00016973,2]
[399515480,1766424644847,-500.0,0.00016973,2]
[399515481,1766424644857,-500.0,0.00016973,2]
[399515482,1766424644866,-500.0,0.00016973,2]
[399515483,1766424644878,-500.0,0.00016973,2]
[399515484,1766424644887,-500.0,0.00016973,2]
[399515485,1766424644897,-500.0,0.00016973,2]
[399515486,1766424644907,-500.0,0.00016973,2]
[399515487,1766424644916,-500.0,0.00016973,2]
[399515488,1766424644926,-500.0,0.00016973,2]
[399515489,1766424644935,-500.0,0.00016973,2]
[399515490,1766424644946,-500.0,0.00016973,2]
[399515491,1766424644956,-500.0,0.00016973,2]
[399515492,1766424644965,-577.70558009,0.00016973,2]
[399515493,1766424644974,-500.45563157,0.00016973,2]
[399515494,1766424644983,-500.0,0.00016973,2]
[399515495,1766424644993,-166.96828513,0.00016973,2]
[399515496,1766424645002,-500.0,0.00016973,2]
[399515497,1766424645011,-500.0,0.00016973,2]
[399515498,1766424645020,-500.0,0.00016973,2]
[399515499,1766424645029,-500.0,0.00016973,2]
[399515500,1766424645039,-500.0,0.00016973,2]
[399515501,1766424645049,-500.0,0.00016973,2]
[399515502,1766424645058,-468.6988227,0.00016973,2]
[399515503,1766424645067,-500.0,0.00016973,2]
[399515504,1766424645077,-500.0,0.00016973,2]
[399515505,1766424645086,-500.16141079,0.00016973,2]
[399515506,1766424645095,-500.0,0.00016973,2]
[399515507,1766424645105,-500.0,0.00016973,2]
[399515508,1766424645114,-500.0,0.00016973,2]
[399515509,1766424645123,-344.75321982,0.00016973,2]
[399515510,1766424645132,-500.0,0.00016973,2]
[399515511,1766424645141,-500.19873097,0.00016973,2]
[399515512,1766424645150,-161.12986217,0.00016973,2]
[399515513,1766424645159,-220.3394429,0.00016973,2]
[399515514,1766424645172,-500.0,0.00016973,2]
[399515515,1766424645181,-500.0,0.00016973,2]
[399515516,1766424645192,-150.0,0.00016973,2]
[399515517,1766424645201,-1830.6,0.00016986,2]
[399515518,1766424645213,-273.54560927,0.0001699,2]
[399515519,1766424645222,-273.54560927,0.0001699,2]
[399515520,1766424645231,-273.54560927,0.0001699,2]
[399515521,1766424645241,-2014.3877748,0.00016999,2]
[399515522,1766424645250,-500.0,0.00016999,2]
[399515523,1766424645259,-500.0,0.00016999,2]
[399515524,1766424645268,-500.0,0.00016999,2]
[399515525,1766424645277,-500.0,0.00016999,2]
[399515526,1766424645287,-500.0,0.00016999,2]
[399515527,1766424645297,-509.35122608,0.00016999,2]
[399515528,1766424645307,-1060.9849521,0.00016999,2]
[399515529,1766424645316,-500.0,0.00016999,2]
[399515530,1766424645326,-500.0,0.00016999,2]
[399515531,1766424645335,-500.0,0.00016999,2]
[399515532,1766424645344,-500.0,0.00016999,2]
[399515533,1766424645355,-500.0,0.00016999,2]
[399515534,1766424645364,-500.0,0.00016999,2]
[399515535,1766424645374,-500.0,0.00016999,2]
[399515536,1766424645383,-500.0,0.00016999,2]
[399515537,1766424645393,-500.0,0.00016999,2]
[399515538,1766424645402,-500.0,0.00016999,2]
[399515539,1766424645411,-500.0,0.00016999,2]
[399515540,1766424645421,-510.46904763,0.00016999,2]
[399515541,1766424645431,-12904.9192679,0.00016999,2]
[399515542,1766424645441,-300.0,0.00016999,2]
[399515543,1766424645450,-666.0,0.00016999,2]
[399515544,1766424645459,-150.0,0.00016999,2]
[399515545,1766424645469,-300.0,0.00016999,2]
[399515546,1766424645479,-251768.1059148,0.00016999,2]
[399515547,1766424645488,-11104.8662432,0.00016999,2]
[399515548,1766424645497,-862.86,0.00016999,2]
[399515549,1766424645506,-862.86,0.00016999,2]
[399515550,1766424645516,-862.86,0.00016999,2]
[399515551,1766424645525,-862.86,0.00016999,2]
[399515552,1766424645535,-862.86,0.00016999,2]
[399515553,1766424645545,-862.86,0.00016999,2]
[399515554,1766424645558,-862.86,0.00016999,2]
[399515555,1766424645571,-862.86,0.00016999,2]
[399515556,1766424645585,-862.86,0.00016999,2]
[399515557,1766424645598,-862.86,0.00016999,2]
[399515558,1766424645609,-862.86,0.00016999,2]
[399515559,1766424645622,-862.86,0.00016999,2]
[399515560,1766424645635,-862.86,0.00016999,2]
[399515561,1766424645648,-862.86,0.00016999,2]
[399515562,1766424645661,-862.86,0.00016999,2]
[399515563,1766424645676,-862.86,0.00016999,2]
[399515564,1766424645689,-862.86,0.00016999,2]
[399515565,1766424645710,-862.86,0.00016999,2]
[399515566,1766424645723,-863.06593767,0.00016999,2]
[399515568,1766424645735,-500.0,0.00016999,2]
[399515569,1766424645748,-500.0,0.00016999,2]
[399515570,1766424645761,-500.0,0.00016999,2]
[399515571,1766424645774,-500.0,0.00016999,2]
[399515572,1766424645786,-500.0,0.00016999,2]
[399515573,1766424645799,-500.0,0.00016999,2]
[399515574,1766424645812,-500.0,0.00016999,2]
[399515575,1766424645824,-300.0,0.00016999,2]
[399515576,1766424645838,-3595504.5123416,0.00017,2]
[399515577,1766424645852,-151.0,0.00017,2]
[399515578,1766424645864,-250.0,0.00017,2]
[399515579,1766424645881,-314.95350618,0.00017,2]
[399515580,1766424645894,-278.91718941,0.00017,2]
[399515582,1766424645908,-2000.0,0.00017,2]
[399515583,1766424645922,-200.0,0.00017,2]
[399515584,1766424645935,-1582.355,0.00017,2]
[399515585,1766424645950,-259.761,0.00017,2]
[399515586,1766424645962,-398.55544668,0.00017,2]
[399515587,1766424645973,-3354030.58003806,0.00017,2]
[399515590,1766424646687,-241.0,0.00014108,2]
[399515592,1766424646700,-299.84255879,0.00015451,2]
[399515595,1766424646712,-3457.0,0.00016812,2]
[399515597,1766424646732,-1484.46368982,0.000169,2]
[399515599,1766424646745,-158130.78914888,0.00017,2]
[399515601,1766424646757,-152.0,0.00017,2]
[399515604,1766424646769,-152.0,0.00017,2]
[399515605,1766424646781,-152.0,0.00017,2]
[399515606,1766424646793,-836.0,0.00017,2]
[399515608,1766424646806,-1256.0,0.00017,2]
[399515610,1766424646818,-152.0,0.00017,2]
[399515612,1766424646830,-836.0,0.00017,2]
[399515614,1766424646841,-152.0,0.00017,2]
[399515616,1766424646853,-1256.0,0.00017,2]
[399515618,1766424646866,-152.0,0.00017,2]
[399515621,1766424646881,-836.0,0.00017,2]
[399515622,1766424646893,-152.0,0.00017,2]
[399515623,1766424646904,-1256.0,0.00017,2]
[399515624,1766424646917,-152.0,0.00017,2]
[399515625,1766424646931,-836.0,0.00017,2]
[399515626,1766424646944,-1256.0,0.00017,2]
[399515627,1766424646955,-152.0,0.00017,2]
[399515628,1766424646967,-152.0,0.00017,2]
[399515629,1766424646978,-836.0,0.00017,2]
[399515630,1766424646989,-1256.0,0.00017,2]
[399515631,1766424647000,-152.0,0.00017,2]
[399515632,1766424647012,-152.0,0.00017,2]
[399515633,1766424647023,-836.0,0.00017,2]
[399515634,1766424647035,-1256.0,0.00017,2]
[399515635,1766424647046,-152.0,0.00017,2]
[399515636,1766424647057,-152.0,0.00017,2]
[399515637,1766424647069,-836.0,0.00017,2]
[399515638,1766424647081,-1256.0,0.00017,2]
[399515639,1766424647092,-152.0,0.00017,2]
[399515640,1766424647103,-152.0,0.00017,2]
[399515641,1766424647114,-1256.0,0.00017,2]
[399515642,1766424647125,-152.0,0.00017,2]
[399515643,1766424647137,-152.0,0.00017,2]
[399515644,1766424647148,-1256.0,0.00017,2]
[399515645,1766424647159,-152.0,0.00017,2]
[399515646,1766424647170,-152.0,0.00017,2]
[399515647,1766424647183,-1256.0,0.00017,2]
[399515648,1766424647195,-152.0,0.00017,2]
[399515649,1766424647206,-152.0,0.00017,2]
[399515650,1766424647217,-1256.0,0.00017,2]
[399515651,1766424647228,-152.0,0.00017,2]
[399515652,1766424647239,-152.0,0.00017,2]
[399515653,1766424647251,-152.0,0.00017,2]
[399515654,1766424647263,-152.0,0.00017,2]
[399515655,1766424647274,-1256.0,0.00017,2]
[399515656,1766424647285,-152.0,0.00017,2]
[399515657,1766424647297,-152.0,0.00017,2]
[399515658,1766424647308,-1256.0,0.00017,2]